{"text_format":"1","workbook":"xlsx","n_sheets":6,"sheets":["はじめに","離職票作成ツール","本紙","続紙","続紙2","続紙3"],"not_rendered":{"charts":0,"images":0,"macros":1,"external_links":0,"defined_names":5,"comments":0,"pivot_tables":0},"unopened":[],"bounds":{"document_bytes":16777216,"sheet_cells":100000,"rows_first":2000,"rows_last":500,"rows_between":2000,"halvings":0,"cell_chars":16384,"cell_head_chars":4096},"cells_cut":0,"cells_raw":0,"read":"whole","date_system":"1900"}

{"sheet":"はじめに","index":0,"n_rows":18,"n_cols":9,"rows_kept":18,"cut":false,"hidden":false,"merged":[[8,0,8,8]]}
[null,null,null,null,null,null,null,null,"2024-08-28"]
["事業所雇用保険ご担当者様"]
[]
[]
[null,null,null,null,null,null,null,"三島公共職業安定所"]
[null,null,null,null,null,null,null,"雇用保険課"]
[]
[]
["育児休業シミュレーションツール（sbs-c）について"]
[]
["１　使用方法"]
["　　使用法は、別添の「ツール使用マニュアル」をご覧ください。"]
[]
["２　注意点"]
["　（１）適正な申請を阻害する可能性があるため、当ファイルの改造は行わないでください。"]
["　（２）当ファイルで作成したものを申請書として提出することはできません。"]
[]
["　"]

{"sheet":"離職票作成ツール","index":1,"n_rows":63,"n_cols":17,"rows_kept":63,"cut":false,"hidden":false,"merged":[[61,2,61,3],[62,2,62,3],[6,13,7,13],[7,2,7,4],[6,5,7,5],[6,6,7,8],[6,9,7,9],[6,10,6,12]]}
[]
[null,null,null,"育休の前日","2024-08-28",null,null,null,null,"傷病等により、就労ができずかつ、賃金の支払いがなかった期間"]
[null,null,null,"資格取得日","2014-04-01",null,null,null,null,"2021-05-12","～","2023-03-31"]
[null,null,null,"賃金締切日",28,null,null,null,null,"※実行により色がついた箇所は省略が可能です。"]
[null,null,null,"賃金形態","日給月給（その他）",null,null,null,null,"日数",{"$f":"L3-J3+1","v":689}]
[null,null,null,"基礎日数",21,"←日給月給制で基礎日数が定数の場合のみ入力"]
[null,null,"育休開始日",null,"2024-08-29","⑨欄","⑩欄",null,null,"⑪欄","⑫欄",null,null,"⑬欄"]
[null,null,"⑧欄",null,null,null,null,null,null,null,"A欄（月給的賃金）","B欄（変動的賃金）","計",null,null,"出産日","2023-08-31"]
[null,1,null,"～",null,null,null,"～",null,null,null,null,{"$f":"IFERROR(K9+L9,\"\")","v":0},null,null,"出産予定日","2022-01-01"]
[null,2,null,"～",null,null,null,"～",null,null,null,null,{"$f":"IFERROR(K10+L10,\"\")","v":0},null,null,"産前開始日",{"$f":"DATE(YEAR(Q9),MONTH(Q9),DAY(Q9)-41)","v":"2021-11-21"}]
[null,3,null,"～",null,null,null,"～",null,null,null,null,0,null,null,"産後終了日",{"$f":"DATE(YEAR(Q8),MONTH(Q8),DAY(Q8)+56)","v":"2023-10-26"}]
[null,4,null,"～",null,null,null,"～",null,null,null,null,0,null,null,"※多胎妊娠の場合は産前９８日です。"]
[null,5,null,"～",null,null,null,"～",null,null,null,null,0]
[null,6,null,"～",null,null,null,"～",null,null,null,null,0,null,null,"⑧～⑨の抹消開始",21]
[null,7,null,"～",null,null,null,"～",null,null,null,null,0,null,null,"⑩～⑬の抹消開始",25]
[null,8,null,"～",null,null,null,"～",null,null,null,null,0]
[null,9,null,"～",null,null,null,"～",null,null,null,null,0]
[null,10,null,"～",null,null,null,"～",null,null,null,null,0]
[null,11,null,"～",null,null,null,"～",null,null,null,null,0]
[null,12,null,"～",null,null,null,"～",null,null,null,null,0]
[null,13,null,"～",null,null,null,"～",null,null,null,null,0]
[null,14,null,"～",null,null,null,"～",null,null,null,null,0]
[null,15,null,"～",null,null,null,"～",null,null,null,null,0]
[null,16,null,"～",null,null,null,"～",null,null,null,null,0]
[null,17,null,"～",null,null,null,"～",null,null,null,null,0]
[null,18,null,"～",null,null,null,"～",null,null,null,null,0]
[null,19,null,"～",null,null,null,"～",null,null,null,null,0]
[null,20,null,"～",null,null,null,"～",null,null,null,null,0]
[null,21,null,"～",null,null,null,"～",null,null,null,null,0]
[null,22,null,"～",null,null,null,"～",null,null,null,null,0]
[null,23,null,"～",null,null,null,"～",null,null,null,null,0]
[null,24,null,"～",null,null,null,"～",null,null,null,null,0]
[null,25,null,"～",null,null,null,"～",null,null,null,null,0]
[null,26,null,"～",null,null,null,"～",null,null,null,null,0]
[null,27,null,"～",null,null,null,"～",null,null,null,null,0]
[null,28,null,"～",null,null,null,"～",null,null,null,null,0]
[null,29,null,"～",null,null,null,"～",null,null,null,null,0]
[null,30,null,"～",null,null,null,"～",null,null,null,null,0]
[null,31,null,"～",null,null,null,"～",null,null,null,null,0]
[null,32,null,"～",null,null,null,"～",null,null,null,null,0]
[null,33,null,"～",null,null,null,"～",null,null,null,null,0]
[null,34,null,"～",null,null,null,"～",null,null,null,null,0]
[null,35,null,"～",null,null,null,"～",null,null,null,null,0]
[null,36,null,"～",null,null,null,"～",null,null,null,null,0]
[null,37,null,"～",null,null,null,"～",null,null,null,null,0]
[null,38,null,"～",null,null,null,"～",null,null,null,null,0]
[null,39,null,"～",null,null,null,"～",null,null,null,null,0]
[null,40,null,"～",null,null,null,"～",null,null,null,null,0]
[null,41,null,"～",null,null,null,"～",null,null,null,null,0]
[null,42,null,"～",null,null,null,"～",null,null,null,null,0]
[null,43,null,"～",null,null,null,"～",null,null,null,null,0]
[null,44,null,"～",null,null,null,"～",null,null,null,null,0]
[null,45,null,"～",null,null,null,"～",null,null,null,null,0]
[null,46,null,"～",null,null,null,"～",null,null,null,null,0]
[null,47,null,"～",null,null,null,"～",null,null,null,null,0]
[null,48,null,"～",null,null,null,"～",null,null,null,null,0]
[null,49,null,"～",null,null,null,"～",null,null,null,null,0]
[null,50,null,"～",null,null,null,"～",null,null,null,null,0]
[null,51,null,"～",null,null,null,"～",null,null,null,null,0]
[null,52,null,"～",null,null,null,"～",null,null,null,null,0]
[]
[null,null,"離職日から２年間を満たす日"]
[null,null,"離職日から４年間を満たす日"]

{"sheet":"本紙","index":2,"n_rows":123,"n_cols":98,"rows_kept":123,"cut":false,"hidden":false,"merged":[[1,12,4,13],[9,2,9,4],[9,7,9,10],[9,11,10,11],[9,12,10,13],[10,2,10,4],[10,5,10,6],[10,7,10,10],[7,1,8,13],[12,9,13,13],[13,2,13,7],[14,2,14,7],[14,9,14,10],[94,1,95,3],[94,12,95,13],[19,1,19,13],[15,2,16,13],[17,2,18,13],[11,2,12,7],[11,8,14,8],[11,9,11,11],[96,1,107,1],[20,13,22,13],[90,1,93,1],[90,10,93,13],[20,6,22,8],[20,9,22,9],[20,10,21,12],[20,4,22,5],[97,3,98,4],[94,4,95,7],[94,8,95,8],[94,9,95,9],[94,10,95,11]]}
[null,null,null,null,null,null,null,null,null,null,null,null,null,null,null,null,null,null,null,null,null,null,null,null,null,null,null,null,null,null,null,null,null,null,null,null,null,null,null,null,null,null,null,null,null,null,null,null,null,null,null,null,null,null,null,null,null,null,null,null,null,null,null,null,null,null,null,null,null,null,null,null,null,null,null,null,null,null,null,null,null,null,null,null,null,null,null,null,null,null,null,null,null,null,null,null,null,"2022-10-18"]
[null,null,null,null,null,null,null,null,null,null,null,null,null,null,null,null,null,null,null,null,null,null,null,null,null,null,null,null,null,null,null,null,null,null,null,null,null,null,null,null,null,null,null,null,null,null,null,null,null,null,null,null,null,null,null,null,null,null,null,null,null,null,null,null,null,null,null,null,null,null,null,null,null,null,null,null,null,null,null,null,null,null,null,null,null,null,null,null,null,null,null,null,null,null,null,null,null,"2022-09-18"]
[null,null,null,null,null,null,null,null,null,null,null,null,null,null,null,null,null,null,null,null,null,null,null,null,null,null,null,null,null,null,null,null,null,null,null,null,null,null,null,null,null,null,null,null,null,null,null,null,null,null,null,null,null,null,null,null,null,null,null,null,null,null,null,null,null,null,null,null,null,null,null,null,null,null,null,null,null,null,null,null,null,null,null,null,null,null,null,null,null,null,null,null,null,null,null,null,null,"2022-08-18"]
[null,null,null,null,null,null,null,null,null,null,null,null,null,null,null,null,null,null,null,null,null,null,null,null,null,null,null,null,null,null,null,null,null,null,null,null,null,null,null,null,null,null,null,null,null,null,null,null,null,null,null,null,null,null,null,null,null,null,null,null,null,null,null,null,null,null,null,null,null,null,null,null,null,null,null,null,null,null,null,null,null,null,null,null,null,null,null,null,null,null,null,null,null,null,null,null,null,"2021-12-18"]
[null,null,null,null,null,null,null,null,null,null,null,null,null,null,null,null,null,null,null,null,null,null,null,null,null,null,null,null,null,null,null,null,null,null,null,null,null,null,null,null,null,null,null,null,null,null,null,null,null,null,null,null,null,null,null,null,null,null,null,null,null,null,null,null,null,null,null,null,null,null,null,null,null,null,null,null,null,null,null,null,null,null,null,null,null,null,null,null,null,null,null,null,null,null,null,null,null,"2021-11-18"]
[]
[]
[null,"雇用保険被保険者休業開始時賃金月額証明書"]
[]
[null,"①\n被保険者番号",null,null,null,"　③","フリガナ",null,null,null,null,"④休業等を\n開始した日の\n年月日"]
[null,"②\n事業所番号",null,null,null,"休業等を開始したものの氏名"]
[null,"⑤",null,null,null,null,null,null," ⑥休業等を\n開始した者の\n住所又は居所","〒"]
[null,"               名称"]
[null,"事業所 所在地"]
[null,"         電話番号",null,null,null,null,null,null,null,"電話番号",null,null,null,"－"]
[]
[null,"住所"]
[null,"事業主"]
[null,"氏名"]
[null,"休業等を開始した日 前 の 賃 金 支 払 状 況 等"]
[null,"⑦被保険者期間算定対象期間",null,null,"⑧\n　　⑦の期間\n　　における\n　　賃金支払\n　　基礎日数",null,"⑨\n\n             賃 金 支 払 対 象 期 間",null,null,"⑩\n  ⑨ の\n  基 礎\n  日 数","⑪\n　　　　　賃　　　　金　　　　　額",null,null,"⑫\n　 備　考"]
[]
[null,"休業等を開始した日 ",null,null,null,null,null,null,null,null,"（A)","（B)","計"]
[null,"月　日","～","休業等開始日の前日",null,"　 日","月　日","～","休業等開始日の前日"," 　日"]
[null,"月　日","～","月　日",null,"　 日","月　日","～","月　日"," 　日"]
[null,"月　日","～","月　日",null,"　 日","月　日","～","月　日"," 　日"]
[null,"月　日","～","月　日",null,"　 日","月　日","～","月　日"," 　日"]
[null,"月　日","～","月　日",null,"　 日","月　日","～","月　日"," 　日"]
[null,"月　日","～","月　日",null,"　 日","月　日","～","月　日"," 　日"]
[null,"月　日","～","月　日",null,"　 日","月　日","～","月　日"," 　日"]
[null,"月　日","～","月　日",null,"　 日","月　日","～","月　日"," 　日"]
[null,"月　日","～","月　日",null,"　 日","月　日","～","月　日"," 　日"]
[null,"月　日","～","月　日",null,"　 日","月　日","～","月　日"," 　日"]
[null,"月　日","～","月　日",null,"　 日","月　日","～","月　日"," 　日"]
[null,"月　日","～","月　日",null,"　 日","月　日","～","月　日"," 　日"]
[null,"月　日","～","月　日",null,"　 日","月　日","～","月　日"," 　日"]
[null,"月　日","～","月　日",null,"　 日","月　日","～","月　日"," 　日"]
[null,"月　日","～","月　日",null,"　 日","月　日","～","月　日"," 　日"]
[null,"月　日","～","月　日",null,"　 日","月　日","～","月　日"," 　日"]
[null,"月　日","～","月　日",null,"　 日","月　日","～","月　日"," 　日"]
[null,"月　日","～","月　日",null,"　 日","月　日","～","月　日"," 　日"]
[null,"月　日","～","月　日",null,"　 日","月　日","～","月　日"," 　日"]
[null,"月　日","～","月　日",null,"　 日","月　日","～","月　日"," 　日"]
[null,"月　日","～","月　日",null,"　 日","月　日","～","月　日"," 　日"]
[null,"月　日","～","月　日",null,"　 日","月　日","～","月　日"," 　日"]
[null,"月　日","～","月　日",null,"　 日","月　日","～","月　日"," 　日"]
[null,"月　日","～","月　日",null,"　 日","月　日","～","月　日"," 　日"]
[null,"月　日","～","月　日",null,"　 日","月　日","～","月　日"," 　日"]
[null,"月　日","～","月　日",null,"　 日","月　日","～","月　日"," 　日"]
[null,"月　日","～","月　日",null,"　 日","月　日","～","月　日"," 　日"]
[null,"月　日","～","月　日",null,"　 日","月　日","～","月　日"," 　日"]
[null,"月　日","～","月　日",null,"　 日","月　日","～","月　日"," 　日"]
[null,"月　日","～","月　日",null,"　 日","月　日","～","月　日"," 　日"]
[null,"月　日","～","月　日",null,"　 日","月　日","～","月　日"," 　日"]
[null,"月　日","～","月　日",null,"　 日","月　日","～","月　日"," 　日"]
[null,"月　日","～","月　日",null,"　 日","月　日","～","月　日"," 　日"]
[null,"月　日","～","月　日",null,"　 日","月　日","～","月　日"," 　日"]
[null,"月　日","～","月　日",null,"　 日","月　日","～","月　日"," 　日"]
[null,"月　日","～","月　日",null,"　 日","月　日","～","月　日"," 　日"]
[null,"月　日","～","月　日",null,"　 日","月　日","～","月　日"," 　日"]
[null,"月　日","～","月　日",null,"　 日","月　日","～","月　日"," 　日"]
[null,"月　日","～","月　日",null,"　 日","月　日","～","月　日"," 　日"]
[null,"月　日","～","月　日",null,"　 日","月　日","～","月　日"," 　日"]
[null,"月　日","～","月　日",null,"　 日","月　日","～","月　日"," 　日"]
[null,"月　日","～","月　日",null,"　 日","月　日","～","月　日"," 　日"]
[null,"月　日","～","月　日",null,"　 日","月　日","～","月　日"," 　日"]
[null,"月　日","～","月　日",null,"　 日","月　日","～","月　日"," 　日"]
[null,"月　日","～","月　日",null,"　 日","月　日","～","月　日"," 　日"]
[null,"月　日","～","月　日",null,"　 日","月　日","～","月　日"," 　日"]
[null,"月　日","～","月　日",null,"　 日","月　日","～","月　日"," 　日"]
[null,"月　日","～","月　日",null,"　 日","月　日","～","月　日"," 　日"]
[null,"月　日","～","月　日",null,"　 日","月　日","～","月　日"," 　日"]
[null,"月　日","～","月　日",null,"　 日","月　日","～","月　日"," 　日"]
[null,"月　日","～","月　日",null,"　 日","月　日","～","月　日"," 　日"]
[null,"月　日","～","月　日",null,"　 日","月　日","～","月　日"," 　日"]
[null,"月　日","～","月　日",null,"　 日","月　日","～","月　日"," 　日"]
[null,"月　日","～","月　日",null,"　 日","月　日","～","月　日"," 　日"]
[null,"月　日","～","月　日",null,"　 日","月　日","～","月　日"," 　日"]
[null,"月　日","～","月　日",null,"　 日","月　日","～","月　日"," 　日"]
[null,"月　日","～","月　日",null,"　 日","月　日","～","月　日"," 　日"]
[null,"月　日","～","月　日",null,"　 日","月　日","～","月　日"," 　日"]
[null,"月　日","～","月　日",null,"　 日","月　日","～","月　日"," 　日"]
[null,"月　日","～","月　日",null,"　 日","月　日","～","月　日"," 　日"]
[null,"月　日","～","月　日",null,"　 日","月　日","～","月　日"," 　日"]
[null,"月　日","～","月　日",null,"　 日","月　日","～","月　日"," 　日"]
[null,"月　日","～","月　日",null,"　 日","月　日","～","月　日"," 　日"]
[null,"月　日","～","月　日",null,"　 日","月　日","～","月　日"," 　日"]
[null,"月　日","～","月　日",null,"　 日","月　日","～","月　日"," 　日"]
[null,"月　日","～","月　日",null,"　 日","月　日","～","月　日"," 　日"]
[null,"月　日","～","月　日",null,"　 日","月　日","～","月　日"," 　日"]
[null,"　⑬\n　賃  金  に\n　関  す  る\n　特記事項"]
[]
[]
[]
[null,"休業開始時における雇用期間",null,null,"□　定めなし　□　定めあり　→",null,null,null,"2023-12-01","までの","休業開始日を含めて"]
[]
[null,"※公共職業安定所記載欄"]
[]
[]
[]
[]
[]
[]
[]
[]
[]
[]
[]
[]
[]
[]
[]
[]
[]
[]
[]
[]
[]
[]
[]
[]
[]
[null,null,null,null,null,null,null,null,null,null,null,null,null,null,null,null,1101]

{"sheet":"続紙","index":3,"n_rows":46,"n_cols":98,"rows_kept":46,"cut":false,"hidden":false,"merged":[[11,2,12,7],[11,8,14,8],[11,9,11,11],[12,9,13,13],[7,1,8,13],[1,12,4,13],[9,2,9,4],[9,7,9,10],[9,11,10,11],[9,12,10,13],[10,2,10,4],[10,5,10,6],[10,7,10,10],[45,1,56,1],[46,3,47,4],[43,4,44,7],[43,8,44,8],[20,9,22,9],[20,4,22,5],[39,1,42,1],[20,6,22,8],[43,9,44,9],[20,13,22,13],[43,1,44,3],[20,10,21,12],[13,2,13,7],[14,2,14,7],[14,9,14,10],[39,10,42,13],[43,10,44,11],[19,1,19,13],[15,2,16,13],[17,2,18,13],[43,12,44,13]]}
[null,null,null,"　　　 月　日",null,null,null,null,null,null,null,null,null,null,null,null,null,null,null,null,null,null,null,null,null,null,null,null,null,null,null,null,null,null,null,null,null,null,null,null,null,null,null,null,null,null,null,null,null,null,null,null,null,null,null,null,null,null,null,null,null,null,null,null,null,null,null,null,null,null,null,null,null,null,null,null,null,null,null,null,null,null,null,null,null,null,null,null,null,null,null,null,null,null,null,null,null,"2022-10-18"]
[null,null,null,null,null,null,null,null,null,null,null,null,null,null,null,null,null,null,null,null,null,null,null,null,null,null,null,null,null,null,null,null,null,null,null,null,null,null,null,null,null,null,null,null,null,null,null,null,null,null,null,null,null,null,null,null,null,null,null,null,null,null,null,null,null,null,null,null,null,null,null,null,null,null,null,null,null,null,null,null,null,null,null,null,null,null,null,null,null,null,null,null,null,null,null,null,null,"2022-09-18"]
[null,null,null,null,null,null,null,null,null,null,null,null,null,null,null,null,null,null,null,null,null,null,null,null,null,null,null,null,null,null,null,null,null,null,null,null,null,null,null,null,null,null,null,null,null,null,null,null,null,null,null,null,null,null,null,null,null,null,null,null,null,null,null,null,null,null,null,null,null,null,null,null,null,null,null,null,null,null,null,null,null,null,null,null,null,null,null,null,null,null,null,null,null,null,null,null,null,"2022-08-18"]
[null,null,null,null,null,null,null,null,null,null,null,null,null,null,null,null,null,null,null,null,null,null,null,null,null,null,null,null,null,null,null,null,null,null,null,null,null,null,null,null,null,null,null,null,null,null,null,null,null,null,null,null,null,null,null,null,null,null,null,null,null,null,null,null,null,null,null,null,null,null,null,null,null,null,null,null,null,null,null,null,null,null,null,null,null,null,null,null,null,null,null,null,null,null,null,null,null,"2021-12-18"]
[null,null,null,null,null,null,null,null,null,null,null,null,null,null,null,null,null,null,null,null,null,null,null,null,null,null,null,null,null,null,null,null,null,null,null,null,null,null,null,null,null,null,null,null,null,null,null,null,null,null,null,null,null,null,null,null,null,null,null,null,null,null,null,null,null,null,null,null,null,null,null,null,null,null,null,null,null,null,null,null,null,null,null,null,null,null,null,null,null,null,null,null,null,null,null,null,null,"2021-11-18"]
[]
[]
[null,"雇用保険被保険者休業開始時賃金月額証明書"]
[]
[null,"①\n被保険者番号",null,null,null,"　③","フリガナ",null,null,null,null,"④休業等を\n開始した日の\n年月日",{"$f":"本紙!M10","v":"00:00:00"}]
[null,"②\n事業所番号",null,null,null,"休業等を開始したものの氏名"]
[null,"⑤",null,null,null,null,null,null," ⑥休業等を\n開始した者の\n住所又は居所",{"$f":"本紙!J12","v":"〒"}]
[null,"               名称",null,null,null,null,null,null,null,{"$f":"本紙!J13","v":0}]
[null,"事業所 所在地"]
[null,"         電話番号",null,null,null,null,null,null,null,"電話番号",null,null,null,"－"]
[]
[null,"住所"]
[null,"事業主"]
[null,"氏名"]
[null,"休業等を開始した日 前 の 賃 金 支 払 状 況 等"]
[null,"⑦被保険者期間算定対象期間",null,null,"⑧\n　　⑦の期間\n　　における\n　　賃金支払\n　　基礎日数",null,"⑨\n\n             賃 金 支 払 対 象 期 間",null,null,"⑩\n  ⑨ の\n  基 礎\n  日 数","⑪\n　　　　　賃　　　　金　　　　　額",null,null,"⑫\n　 備　考"]
[]
[null,"休業等を開始した日 ","　月　日",null,null,null,null,null,null,null,"（A)","（B)","計"]
[null,"月　日","～","休業等開始日の前日",null,"日","月　日","～","休業等開始日の前日"," 　日",null,null,{"$f":"K24+L24","v":0}]
[null,null,"～",null,null,null,null,"～"]
[null,null,"～",null,null,null,null,"～"]
[null,null,"～",null,null,null,null,"～"]
[null,null,"～",null,null,null,null,"～"]
[null,null,"～",null,null,null,null,"～"]
[null,null,"～",null,null,null,null,"～"]
[null,null,"～",null,null,null,null,"～"]
[null,null,"～",null,null,null,null,"～"]
[null,null,"～",null,null,null,null,"～"]
[null,null,"～",null,null,null,null,"～"]
[null,null,"～",null,null,null,null,"～"]
[null,null,"～",null,null,null,null,"～"]
[null,null,"～",null,null,null,null,"～"]
[null,null,"～",null,null,null,null,"～"]
[null,null,"～",null,null,null,null,"～"]
[null,"　⑬\n　賃  金  に\n　関  す  る\n　特記事項"]
[]
[]
[]
[null,"休業開始時における雇用期間",null,null,{"$f":"本紙!E95","v":"□　定めなし　□　定めあり　→"},null,null,null,{"$f":"本紙!I95","v":"2023-12-01"},"まで","休業開始日を含めて"]
[]
[null,"※公共職業安定所記載欄"]

{"sheet":"続紙2","index":4,"n_rows":46,"n_cols":98,"rows_kept":46,"cut":false,"hidden":false,"merged":[[10,2,10,4],[10,5,10,6],[43,8,44,8],[19,1,19,13],[43,10,44,11],[43,12,44,13],[1,12,4,13],[11,2,12,7],[11,8,14,8],[11,9,11,11],[12,9,13,13],[7,1,8,13],[13,2,13,7],[14,2,14,7],[9,2,9,4],[9,7,9,10],[9,11,10,11],[9,12,10,13],[43,1,44,3],[43,9,44,9],[10,7,10,10],[14,9,14,10],[45,1,56,1],[46,3,47,4],[15,2,16,13],[17,2,18,13],[20,4,22,5],[20,13,22,13],[39,1,42,1],[39,10,42,13],[20,6,22,8],[20,9,22,9],[20,10,21,12],[43,4,44,7]]}
[null,null,null,"　　　 月　日",null,null,null,null,null,null,null,null,null,null,null,null,null,null,null,null,null,null,null,null,null,null,null,null,null,null,null,null,null,null,null,null,null,null,null,null,null,null,null,null,null,null,null,null,null,null,null,null,null,null,null,null,null,null,null,null,null,null,null,null,null,null,null,null,null,null,null,null,null,null,null,null,null,null,null,null,null,null,null,null,null,null,null,null,null,null,null,null,null,null,null,null,null,"2022-10-18"]
[null,null,null,null,null,null,null,null,null,null,null,null,null,null,null,null,null,null,null,null,null,null,null,null,null,null,null,null,null,null,null,null,null,null,null,null,null,null,null,null,null,null,null,null,null,null,null,null,null,null,null,null,null,null,null,null,null,null,null,null,null,null,null,null,null,null,null,null,null,null,null,null,null,null,null,null,null,null,null,null,null,null,null,null,null,null,null,null,null,null,null,null,null,null,null,null,null,"2022-09-18"]
[null,null,null,null,null,null,null,null,null,null,null,null,null,null,null,null,null,null,null,null,null,null,null,null,null,null,null,null,null,null,null,null,null,null,null,null,null,null,null,null,null,null,null,null,null,null,null,null,null,null,null,null,null,null,null,null,null,null,null,null,null,null,null,null,null,null,null,null,null,null,null,null,null,null,null,null,null,null,null,null,null,null,null,null,null,null,null,null,null,null,null,null,null,null,null,null,null,"2022-08-18"]
[null,null,null,null,null,null,null,null,null,null,null,null,null,null,null,null,null,null,null,null,null,null,null,null,null,null,null,null,null,null,null,null,null,null,null,null,null,null,null,null,null,null,null,null,null,null,null,null,null,null,null,null,null,null,null,null,null,null,null,null,null,null,null,null,null,null,null,null,null,null,null,null,null,null,null,null,null,null,null,null,null,null,null,null,null,null,null,null,null,null,null,null,null,null,null,null,null,"2021-12-18"]
[null,null,null,null,null,null,null,null,null,null,null,null,null,null,null,null,null,null,null,null,null,null,null,null,null,null,null,null,null,null,null,null,null,null,null,null,null,null,null,null,null,null,null,null,null,null,null,null,null,null,null,null,null,null,null,null,null,null,null,null,null,null,null,null,null,null,null,null,null,null,null,null,null,null,null,null,null,null,null,null,null,null,null,null,null,null,null,null,null,null,null,null,null,null,null,null,null,"2021-11-18"]
[]
[]
[null,"雇用保険被保険者休業開始時賃金月額証明書"]
[]
[null,"①\n被保険者番号",null,null,null,"　③","フリガナ",null,null,null,null,"④休業等を\n開始した日の\n年月日",{"$f":"本紙!M10","v":"00:00:00"}]
[null,"②\n事業所番号",null,null,null,"休業等を開始したものの氏名"]
[null,"⑤",{"$f":"本紙!C12","v":0},null,null,null,null,null," ⑥休業等を\n開始した者の\n住所又は居所",{"$f":"本紙!J12","v":"〒"}]
[null,"               名称",null,null,null,null,null,null,null,{"$f":"本紙!J13","v":0}]
[null,"事業所 所在地",{"$f":"本紙!C14","v":0}]
[null,"         電話番号",{"$f":"本紙!C15","v":0},null,null,null,null,null,null,"電話番号",null,null,null,"－"]
[]
[null,"住所"]
[null,"事業主"]
[null,"氏名"]
[null,"休業等を開始した日 前 の 賃 金 支 払 状 況 等"]
[null,"⑦被保険者期間算定対象期間",null,null,"⑧\n　　⑦の期間\n　　における\n　　賃金支払\n　　基礎日数",null,"⑨\n\n             賃 金 支 払 対 象 期 間",null,null,"⑩\n  ⑨ の\n  基 礎\n  日 数","⑪\n　　　　　賃　　　　金　　　　　額",null,null,"⑫\n　 備　考"]
[]
[null,"休業等を開始した日 ","　月　日",null,null,null,null,null,null,null,"（A)","（B)","計"]
[null,"月　日","～","休業等開始日の前日",null,"日"," 月　日","～","休業等開始日の前日"," 　日",null,null,{"$f":"K24+L24","v":0}]
[null,null,"～",null,null,null,null,"～"]
[null,null,"～",null,null,null,null,"～"]
[null,null,"～",null,null,null,null,"～"]
[null,null,"～",null,null,null,null,"～"]
[null,null,"～",null,null,null,null,"～"]
[null,null,"～",null,null,null,null,"～"]
[null,null,"～",null,null,null,null,"～"]
[null,null,"～",null,null,null,null,"～"]
[null,null,"～",null,null,null,null,"～"]
[null,null,"～",null,null,null,null,"～"]
[null,null,"～",null,null,null,null,"～"]
[null,null,"～",null,null,null,null,"～"]
[null,null,"～",null,null,null,null,"～"]
[null,null,"～",null,null,null,null,"～"]
[null,null,"～",null,null,null,null,"～"]
[null,"　⑬\n　賃  金  に\n　関  す  る\n　特記事項"]
[]
[]
[]
[null,"休業開始時における雇用期間",null,null,{"$f":"本紙!E95","v":"□　定めなし　□　定めあり　→"},null,null,null,{"$f":"本紙!I95","v":"2023-12-01"},"まで","休業開始日を含めて"]
[]
[null,"※公共職業安定所記載欄"]

{"sheet":"続紙3","index":5,"n_rows":46,"n_cols":98,"rows_kept":46,"cut":false,"hidden":false,"merged":[[43,12,44,13],[43,1,44,3],[45,1,56,1],[46,3,47,4],[15,2,16,13],[17,2,18,13],[20,4,22,5],[43,4,44,7],[43,8,44,8],[43,9,44,9],[43,10,44,11],[19,1,19,13],[20,13,22,13],[39,1,42,1],[39,10,42,13],[20,6,22,8],[7,1,8,13],[1,12,4,13],[9,2,9,4],[9,7,9,10],[9,11,10,11],[9,12,10,13],[10,2,10,4],[10,5,10,6],[10,7,10,10],[20,9,22,9],[20,10,21,12],[11,2,12,7],[11,8,14,8],[11,9,11,11],[12,9,13,13],[13,2,13,7],[14,2,14,7],[14,9,14,10]]}
[null,null,null,"　　　 月　日",null,null,null,null,null,null,null,null,null,null,null,null,null,null,null,null,null,null,null,null,null,null,null,null,null,null,null,null,null,null,null,null,null,null,null,null,null,null,null,null,null,null,null,null,null,null,null,null,null,null,null,null,null,null,null,null,null,null,null,null,null,null,null,null,null,null,null,null,null,null,null,null,null,null,null,null,null,null,null,null,null,null,null,null,null,null,null,null,null,null,null,null,null,"2022-10-18"]
[null,null,null,null,null,null,null,null,null,null,null,null,null,null,null,null,null,null,null,null,null,null,null,null,null,null,null,null,null,null,null,null,null,null,null,null,null,null,null,null,null,null,null,null,null,null,null,null,null,null,null,null,null,null,null,null,null,null,null,null,null,null,null,null,null,null,null,null,null,null,null,null,null,null,null,null,null,null,null,null,null,null,null,null,null,null,null,null,null,null,null,null,null,null,null,null,null,"2022-09-18"]
[null,null,null,null,null,null,null,null,null,null,null,null,null,null,null,null,null,null,null,null,null,null,null,null,null,null,null,null,null,null,null,null,null,null,null,null,null,null,null,null,null,null,null,null,null,null,null,null,null,null,null,null,null,null,null,null,null,null,null,null,null,null,null,null,null,null,null,null,null,null,null,null,null,null,null,null,null,null,null,null,null,null,null,null,null,null,null,null,null,null,null,null,null,null,null,null,null,"2022-08-18"]
[null,null,null,null,null,null,null,null,null,null,null,null,null,null,null,null,null,null,null,null,null,null,null,null,null,null,null,null,null,null,null,null,null,null,null,null,null,null,null,null,null,null,null,null,null,null,null,null,null,null,null,null,null,null,null,null,null,null,null,null,null,null,null,null,null,null,null,null,null,null,null,null,null,null,null,null,null,null,null,null,null,null,null,null,null,null,null,null,null,null,null,null,null,null,null,null,null,"2021-12-18"]
[null,null,null,null,null,null,null,null,null,null,null,null,null,null,null,null,null,null,null,null,null,null,null,null,null,null,null,null,null,null,null,null,null,null,null,null,null,null,null,null,null,null,null,null,null,null,null,null,null,null,null,null,null,null,null,null,null,null,null,null,null,null,null,null,null,null,null,null,null,null,null,null,null,null,null,null,null,null,null,null,null,null,null,null,null,null,null,null,null,null,null,null,null,null,null,null,null,"2021-11-18"]
[]
[]
[null,"雇用保険被保険者休業開始時賃金月額証明書"]
[]
[null,"①\n被保険者番号",null,null,null,"　③","フリガナ",null,null,null,null,"④休業等を\n開始した日の\n年月日",{"$f":"本紙!M10","v":"00:00:00"}]
[null,"②\n事業所番号",null,null,null,"休業等を開始したものの氏名"]
[null,"⑤",null,null,null,null,null,null," ⑥休業等を\n開始した者の\n住所又は居所",{"$f":"本紙!J12","v":"〒"}]
[null,"               名称",null,null,null,null,null,null,null,{"$f":"本紙!J13","v":0}]
[null,"事業所 所在地"]
[null,"         電話番号",null,null,null,null,null,null,null,"電話番号",null,null,null,"－"]
[]
[null,"住所"]
[null,"事業主"]
[null,"氏名"]
[null,"休業等を開始した日 前 の 賃 金 支 払 状 況 等"]
[null,"⑦被保険者期間算定対象期間",null,null,"⑧\n　　⑦の期間\n　　における\n　　賃金支払\n　　基礎日数",null,"⑨\n\n             賃 金 支 払 対 象 期 間",null,null,"⑩\n  ⑨ の\n  基 礎\n  日 数","⑪\n　　　　　賃　　　　金　　　　　額",null,null,"⑫\n　 備　考"]
[]
[null,"休業等を開始した日 ","　月　日",null,null,null,null,null,null,null,"（A)","（B)","計"]
[null,"月　日","～","休業等開始日の前日",null,"日","月　日","～","休業等開始日の前日"," 　日",null,null,{"$f":"K24+L24","v":0}]
[null,null,"～",null,null,null,null,"～"]
[null,null,"～",null,null,null,null,"～"]
[null,null,"～",null,null,null,null,"～"]
[null,null,"～",null,null,null,null,"～"]
[null,null,"～",null,null,null,null,"～"]
[null,null,"～",null,null,null,null,"～"]
[null,null,"～",null,null,null,null,"～"]
[null,null,"～",null,null,null,null,"～"]
[null,null,"～",null,null,null,null,"～"]
[null,null,"～",null,null,null,null,"～"]
[null,null,"～",null,null,null,null,"～"]
[null,null,"～",null,null,null,null,"～"]
[null,null,"～",null,null,null,null,"～"]
[null,null,"～",null,null,null,null,"～"]
[null,null,"～",null,null,null,null,"～"]
[null,"　⑬\n　賃  金  に\n　関  す  る\n　特記事項"]
[]
[]
[]
[null,"休業開始時における雇用期間",null,null,{"$f":"本紙!E95","v":"□　定めなし　□　定めあり　→"},null,null,null,{"$f":"本紙!I95","v":"2023-12-01"},"まで","休業開始日を含めて"]
[]
[null,"※公共職業安定所記載欄"]